fUST/lending_fUST_20250609
["ID","MTS","AMOUNT","RATE_DAILY","PERIOD"]
[365077092,1749444642540,-887.57,0.00019726,2]
[365077093,1749444642550,-420.0,0.00019726,2]
[365077094,1749444642560,-440.0,0.00019726,2]
[365077095,1749444642570,-440.0,0.00019726,2]
[365077096,1749444642580,-555.90855456,0.00019726,2]
[365077097,1749444642590,-989.21,0.00019726,2]
[365077098,1749444642600,-440.0,0.00019726,2]
[365077099,1749444642610,-420.0,0.00019726,2]
[365077100,1749444642619,-390.0,0.00019726,2]
[365077101,1749444642629,-440.0,0.00019726,2]
[365077102,1749444642639,-1992.35,0.00019726,2]
[365077103,1749444642649,-440.0,0.00019726,2]
[365077104,1749444642659,-641.07,0.00019726,2]
[365077105,1749444642670,-440.0,0.00019726,2]
[365077106,1749444642679,-440.0,0.00019726,2]
[365077107,1749444642690,-440.0,0.00019726,2]
[365077108,1749444642700,-440.0,0.00019726,2]
[365077110,1749444642712,-440.0,0.00019726,2]
[365077111,1749444642722,-656.06,0.00019726,2]
[365077114,1749444642733,-1622.31,0.00019726,2]
[365077116,1749444642743,-440.0,0.00019726,2]
[365077118,1749444642753,-2462.23,0.00019726,2]
[365077120,1749444642763,-440.0,0.00019726,2]
[365077122,1749444642772,-2564.26,0.00019726,2]
[365077124,1749444642784,-440.0,0.00019726,2]
[365077126,1749444642794,-440.0,0.00019726,2]
[365077128,1749444642804,-440.0,0.00019726,2]
[365077130,1749444642814,-440.0,0.00019726,2]
[365077132,1749444642823,-440.0,0.00019726,2]
[365077134,1749444642833,-440.0,0.00019726,2]
[365077136,1749444642843,-396.57699151,0.00019726,2]
[365077138,1749444642853,-440.0,0.00019726,2]
[365077140,1749444642863,-440.0,0.00019726,2]
[365077142,1749444642873,-440.0,0.00019726,2]
[365077145,1749444642883,-1811.2,0.00019726,2]
[365077147,1749444642893,-2141.61,0.00019726,2]
[365077149,1749444642903,-440.0,0.00019726,2]
[365077152,1749444642914,-440.0,0.00019726,2]
[365077155,1749444642924,-956.23,0.00019726,2]
[365077158,1749444642933,-1264.59012865,0.00019728,2]
[365077161,1749444642942,-254.07190664,0.00019788,2]
[365077164,1749444642953,-420.0,0.00019805,2]
[365077166,1749444642963,-420.0,0.00019805,2]
[365077168,1749444642973,-306.0,0.00019805,2]
[365077170,1749444642982,-1680.0,0.00019901,2]
[365077172,1749444642992,-1264.59012865,0.00019934,2]
[365077174,1749444643001,-3014.3352852,0.00019968,2]
[365077176,1749444643012,-182.69,0.0002,3]
[365077178,1749444643021,-526.01447911,0.0002,2]
[365077180,1749444643031,-440.0,0.0002,2]
[365077182,1749444643040,-440.0,0.0002,2]
[365077184,1749444643050,-440.0,0.0002,2]
[365077186,1749444643060,-440.0,0.0002,2]
[365077188,1749444643069,-440.0,0.0002,2]
[365077190,1749444643079,-400.0,0.0002,2]
[365077192,1749444643088,-440.0,0.0002,2]
[365077194,1749444643098,-547.75874635,0.0002,2]
[365077196,1749444643108,-440.0,0.0002,2]
[365077198,1749444643117,-4064.0,0.0002,2]
[365077200,1749444643128,-424.85902584,0.0002,2]
[365077202,1749444643137,-440.0,0.0002,2]
[365077204,1749444643147,-440.0,0.0002,2]
[365077208,1749444643157,-440.0,0.0002,2]
[365077209,1749444643166,-440.0,0.0002,2]
[365077221,1749444643176,-372.71695512,0.0002,2]
[365077224,1749444643283,-440.0,0.0002,2]
[365077226,1749444643293,-440.0,0.0002,2]
[365077228,1749444643302,-440.0,0.0002,2]
[365077230,1749444643311,-440.0,0.0002,2]
[365077232,1749444643321,-440.0,0.0002,2]
[365077234,1749444643330,-2646.0,0.0002,2]
[365077236,1749444643339,-440.0,0.0002,2]
[365077238,1749444643349,-407.35058654,0.0002,2]
[365077240,1749444643358,-440.0,0.0002,2]
[365077242,1749444643368,-440.0,0.0002,2]
[365077244,1749444643378,-440.0,0.0002,2]
[365077246,1749444643388,-400.04325517,0.0002,2]
[365077248,1749444643397,-343.61316749,0.0002,2]
[365077250,1749444643407,-163.65779169,0.0002,2]
[365077252,1749444643418,-213.08899333,0.0002,3]
[365077254,1749444643427,-380.0,0.0002,2]
[365077256,1749444643437,-440.0,0.0002,2]
[365077258,1749444643448,-440.0,0.0002,2]
[365077260,1749444643460,-440.0,0.0002,2]
[365077262,1749444643469,-440.0,0.0002,2]
[365077264,1749444643479,-396.96111193,0.0002,2]
[365077266,1749444643489,-812.26,0.0002,2]
[365077268,1749444643499,-440.0,0.0002,2]
[365077270,1749444643509,-694.74,0.0002,2]
[365077272,1749444643519,-440.0,0.0002,2]
[365077274,1749444643530,-440.0,0.0002,2]
[365077276,1749444643541,-380.0,0.0002,2]
[365077278,1749444643551,-440.0,0.0002,2]
[365077281,1749444643561,-440.0,0.0002,2]
[365077282,1749444643570,-440.0,0.0002,2]
[365077285,1749444643580,-440.0,0.0002,2]
[365077286,1749444643589,-440.0,0.0002,2]
[365077289,1749444643599,-1161.26,0.0002,2]
[365077292,1749444643608,-440.0,0.0002,2]
[365077296,1749444643618,-440.0,0.0002,2]
[365077299,1749444643627,-440.0,0.0002,2]
[365077300,1749444643636,-400.0,0.0002,2]
[365077302,1749444643646,-1198.67,0.0002,2]
[365077305,1749444643655,-440.0,0.0002,2]
[365077307,1749444643665,-440.0,0.0002,2]
[365077309,1749444643675,-440.0,0.0002,2]
[365077313,1749444643684,-2685.57,0.0002,2]
[365077316,1749444643695,-523.07,0.0002,2]
[365077318,1749444643704,-887.57,0.0002,2]
[365077320,1749444643714,-339.39463629,0.0002,2]
[365077322,1749444643724,-420.0,0.0002,2]
[365077324,1749444643734,-989.21,0.0002,2]
[365077326,1749444643744,-440.0,0.0002,2]
[365077328,1749444643754,-440.0,0.0002,2]
[365077330,1749444643763,-1992.35,0.0002,2]
[365077332,1749444643773,-440.0,0.0002,2]
[365077334,1749444643783,-641.07,0.0002,2]
[365077336,1749444643793,-440.0,0.0002,2]
[365077338,1749444643802,-440.0,0.0002,2]
[365077339,1749444643811,-440.0,0.0002,2]
[365077342,1749444643821,-440.0,0.0002,2]
[365077344,1749444643831,-410.0,0.0002,2]
[365077346,1749444643841,-656.06,0.0002,2]
[365077348,1749444643851,-1622.31,0.0002,2]
[365077350,1749444643860,-414.28826946,0.0002,2]
[365077352,1749444643869,-2462.23,0.0002,2]
[365077354,1749444643879,-440.0,0.0002,2]
[365077356,1749444643889,-2564.26,0.0002,2]
[365077358,1749444643898,-440.0,0.0002,2]
[365077360,1749444643908,-440.0,0.0002,2]
[365077362,1749444643917,-440.0,0.0002,2]
[365077364,1749444643927,-440.0,0.0002,2]
[365077366,1749444643937,-440.0,0.0002,2]
[365077368,1749444643947,-440.0,0.0002,2]
[365077370,1749444643957,-440.0,0.0002,2]
[365077372,1749444643967,-390.53136405,0.0002,2]
[365077374,1749444643976,-380.0,0.0002,2]
[365077376,1749444643985,-1811.2,0.0002,2]
[365077378,1749444643994,-11856.04170836,0.0002,3]
[365077380,1749444644004,-2141.61,0.0002,2]
[365077382,1749444644013,-420.0,0.0002,2]
[365077384,1749444644023,-440.0,0.0002,2]
[365077387,1749444644033,-956.23,0.0002,2]
[365077389,1749444644042,-159.661,0.00020137,2]
[365077391,1749444644052,-1264.59012865,0.00020141,2]
[365077393,1749444644061,-2866.2,0.00020272,2]
[365077395,1749444644070,-2866.2,0.00020272,2]
[365077397,1749444644080,-2866.2,0.00020272,2]
[365077399,1749444644090,-2866.2,0.00020272,2]
[365077400,1749444644100,-397.05023977,0.00020273,2]
[365077401,1749444644110,-390.0,0.00020273,2]
[365077402,1749444644119,-440.0,0.00020273,2]
[365077403,1749444644130,-430.0,0.00020273,2]
[365077404,1749444644140,-408.40484658,0.00020273,2]
[365077405,1749444644150,-440.0,0.00020273,2]
[365077406,1749444644160,-390.0,0.00020273,2]
[365077407,1749444644171,-482.87416225,0.00020273,2]
[365077408,1749444644180,-390.0,0.00020273,2]
[365077409,1749444644190,-390.0,0.00020273,2]
[365077410,1749444644199,-390.0,0.00020273,2]
[365077411,1749444644209,-400.83407971,0.00020273,2]
[365077412,1749444644218,-432.70015518,0.00020273,2]
[365077413,1749444644228,-440.0,0.00020273,2]
[365077414,1749444644238,-493.44590857,0.00020273,2]
[365077415,1749444644248,-380.0,0.00020273,2]
[365077416,1749444644259,-380.0,0.00020273,2]
[365077418,1749444644269,-380.0,0.00020273,2]
[365077420,1749444644279,-380.0,0.00020273,2]
[365077422,1749444644288,-380.0,0.00020273,2]
[365077424,1749444644298,-440.0,0.00020273,2]
[365077426,1749444644308,-440.0,0.00020273,2]
[365077428,1749444644317,-440.0,0.00020273,2]
[365077430,1749444644327,-812.26,0.00020273,2]
[365077432,1749444644337,-440.0,0.00020273,2]
[365077434,1749444644347,-694.74,0.00020273,2]
[365077436,1749444644356,-410.45499987,0.00020273,2]
[365077438,1749444644367,-440.0,0.00020273,2]
[365077440,1749444644376,-440.0,0.00020273,2]
[365077442,1749444644387,-440.0,0.00020273,2]
[365077444,1749444644397,-440.0,0.00020273,2]
[365077446,1749444644406,-440.0,0.00020273,2]
[365077448,1749444644415,-440.0,0.00020273,2]
[365077450,1749444644424,-1161.26,0.00020273,2]
[365077452,1749444644434,-440.0,0.00020273,2]
[365077454,1749444644444,-440.0,0.00020273,2]
[365077456,1749444644457,-400.0,0.00020273,2]
[365077458,1749444644466,-1198.67,0.00020273,2]
[365077460,1749444644476,-440.0,0.00020273,2]
[365077462,1749444644485,-420.0,0.00020273,2]
[365077464,1749444644494,-440.0,0.00020273,2]
[365077466,1749444644504,-2685.57,0.00020273,2]
[365077468,1749444644513,-523.07,0.00020273,2]
[365077470,1749444644523,-887.57,0.00020273,2]
[365077473,1749444644533,-989.21,0.00020273,2]
[365077475,1749444644543,-440.0,0.00020273,2]
[365077476,1749444644553,-200.77492493,0.00020273,2]
[365077488,1749444644653,-1791.57507507,0.00020273,2]
[365077490,1749444644663,-440.0,0.00020273,2]
[365077492,1749444644673,-641.07,0.00020273,2]
[365077494,1749444644684,-440.0,0.00020273,2]
[365077496,1749444644695,-350.0,0.00020273,2]
[365077498,1749444644705,-440.0,0.00020273,2]
[365077500,1749444644715,-279.09292648,0.00020273,2]
[365077502,1749444644725,-656.06,0.00020273,2]
[365077504,1749444644735,-1622.31,0.00020273,2]
[365077506,1749444644744,-2083.65198158,0.00020273,2]
[365077563,1749444645312,-500.0,0.00019071,2]
[365077564,1749444645323,-500.0,0.00019071,2]
[365077565,1749444645334,-500.0,0.00019071,2]
[365077566,1749444645344,-500.0,0.00019071,2]
[365077568,1749444645353,-500.0,0.00019071,2]
[365077570,1749444645363,-500.0,0.00019071,2]
[365077571,1749444645374,-499.79231687,0.00019071,2]
[365077573,1749444645384,-500.0,0.00019071,2]
[365077575,1749444645395,-500.0,0.00019071,2]
[365077578,1749444645406,-498.49663397,0.00019071,2]
[365077580,1749444645415,-500.0,0.00019071,2]
[365077582,1749444645425,-487.40757147,0.00019071,2]
[365077584,1749444645437,-12.59242853,0.00019071,2]
[365077586,1749444645447,-500.0,0.00019071,2]
[365077588,1749444645460,-500.0,0.00019071,2]
[365077590,1749444645470,-162.36039255,0.00019071,2]
[365077592,1749444645482,-337.63960745,0.00019071,2]
[365077594,1749444645492,-426.17492599,0.00019071,2]
[365077596,1749444645504,-73.82507401,0.00019071,2]
[365077598,1749444645514,-245.72179116,0.00019071,2]
[365077601,1749444645530,-137.47394346,0.00019071,2]
[365077603,1749444645541,-500.0,0.00019071,2]
[365077605,1749444645550,-509.5,0.00019071,2]
[365077607,1749444645560,-407.32699903,0.00019071,2]
[365077609,1749444645571,-500.0,0.00019071,2]
[365077611,1749444645581,-500.0,0.00019071,2]
[365077613,1749444645590,-500.0,0.00019071,2]
[365077615,1749444645600,-500.0,0.00019071,2]
[365077617,1749444645610,-500.0,0.00019071,2]
[365077620,1749444645620,-500.0,0.00019071,2]
[365077622,1749444645630,-500.0,0.00019071,2]
[365077624,1749444645640,-500.0,0.00019071,2]
[365077626,1749444645649,-500.0,0.00019071,2]
[365077628,1749444645660,-500.0,0.00019071,2]
[365077630,1749444645669,-500.0,0.00019071,2]
[365077632,1749444645679,-500.0,0.00019071,2]
[365077634,1749444645689,-500.0,0.00019071,2]
[365077636,1749444645699,-500.0,0.00019071,2]
[365077638,1749444645710,-500.0,0.00019071,2]
[365077640,1749444645719,-500.0,0.00019071,2]
[365077642,1749444645729,-500.0,0.00019071,2]
[365077644,1749444645739,-500.0,0.00019071,2]
[365077646,1749444645750,-500.0,0.00019071,2]
[365077648,1749444645759,-500.0,0.00019071,2]
[365077650,1749444645769,-500.0,0.00019071,2]
[365077652,1749444645778,-500.0,0.00019071,2]
[365077654,1749444645788,-500.0,0.00019071,2]
[365077656,1749444645797,-500.0,0.00019071,2]
[365077658,1749444645806,-500.0,0.00019071,2]
[365077660,1749444645815,-440.0,0.00019178,2]
[365077662,1749444645826,-440.0,0.00019452,2]
[365077664,1749444645835,-440.0,0.00019452,2]
[365077666,1749444645845,-440.0,0.00019726,2]
[365077668,1749444645855,-439.44324504,0.0002,2]
[365077670,1749444645865,-378.57801842,0.00020273,2]
[365077672,1749444645875,-440.0,0.00020273,2]
[365077674,1749444645885,-2564.26,0.00020273,2]
[365077676,1749444645894,-440.0,0.00020273,2]
[365077678,1749444645904,-440.0,0.00020273,2]
[365077680,1749444645914,-440.0,0.00020273,2]
[365077682,1749444645923,-440.0,0.00020273,2]
[365077684,1749444645933,-440.0,0.00020273,2]
[365077686,1749444645942,-440.0,0.00020273,2]
[365077688,1749444645953,-440.0,0.00020273,2]
[365077690,1749444645962,-1811.2,0.00020273,2]
[365077692,1749444645972,-2141.61,0.00020273,2]
[365077694,1749444645982,-440.0,0.00020273,2]
[365077696,1749444645992,-956.23,0.00020273,2]
[365077698,1749444646002,-1264.59012865,0.00020348,3]
[365077700,1749444646012,-812.26,0.00020547,2]
[365077702,1749444646022,-440.0,0.00020547,2]
[365077704,1749444646032,-694.74,0.00020547,2]
[365077706,1749444646041,-440.0,0.00020547,2]
[365077708,1749444646051,-440.0,0.00020547,2]
[365077710,1749444646060,-440.0,0.00020547,2]
[365077712,1749444646070,-440.0,0.00020547,2]
[365077714,1749444646079,-376.00236887,0.00020547,2]
[365077716,1749444646089,-1161.26,0.00020547,2]
[365077718,1749444646098,-440.0,0.00020547,2]
[365077720,1749444646108,-440.0,0.00020547,2]
[365077722,1749444646118,-1198.67,0.00020547,2]
[365077724,1749444646128,-440.0,0.00020547,2]
[365077726,1749444646137,-440.0,0.00020547,2]
[365077729,1749444646147,-2685.57,0.00020547,2]
[365077731,1749444646156,-523.07,0.00020547,2]
[365077733,1749444646166,-887.57,0.00020547,2]
[365077735,1749444646175,-989.21,0.00020547,2]
[365077737,1749444646185,-440.0,0.00020547,2]
[365077739,1749444646194,-1992.35,0.00020547,2]
[365077741,1749444646204,-440.0,0.00020547,2]
[365077743,1749444646214,-641.07,0.00020547,2]
[365077745,1749444646223,-440.0,0.00020547,2]
[365077747,1749444646233,-440.0,0.00020547,2]
[365077749,1749444646242,-656.06,0.00020547,2]
[365077751,1749444646253,-1622.31,0.00020547,2]
[365077753,1749444646263,-2462.23,0.00020547,2]
[365077755,1749444646276,-2564.26,0.00020547,2]
[365077757,1749444646285,-440.0,0.00020547,2]
[365077759,1749444646293,-440.0,0.00020547,2]
[365077762,1749444646303,-440.0,0.00020547,2]
[365077764,1749444646312,-440.0,0.00020547,2]
[365077766,1749444646321,-440.0,0.00020547,2]
[365077768,1749444646330,-440.0,0.00020547,2]
[365077770,1749444646339,-1811.2,0.00020547,2]
[365077772,1749444646347,-2141.61,0.00020547,2]
[365077774,1749444646357,-440.0,0.00020547,2]
[365077776,1749444646367,-956.23,0.00020547,2]
[365077778,1749444646376,-500.0,0.00020548,2]
[365077780,1749444646385,-500.0,0.00020548,2]
[365077782,1749444646394,-500.0,0.00020548,2]
[365077784,1749444646403,-500.0,0.00020548,2]
[365077786,1749444646413,-500.0,0.00020548,2]
[365077788,1749444646423,-500.0,0.00020548,2]
[365077790,1749444646432,-576.35126943,0.00020548,2]
[365077792,1749444646442,-500.0,0.00020548,2]
[365077794,1749444646453,-500.0,0.00020548,2]
[365077796,1749444646462,-500.0,0.00020548,2]
[365077798,1749444646471,-500.0,0.00020548,2]
[365077799,1749444646481,-1264.59012865,0.00020555,3]
[365077800,1749444646490,-254.07190664,0.00020568,2]
[365077801,1749444646500,-711.59,0.000206,2]
[365077803,1749444646510,-67456.41,0.000206,2]
[365077805,1749444646520,-1385.06,0.000206,2]
[365077807,1749444646530,-1264.59012865,0.00020762,3]
[365077809,1749444646540,-160.0,0.00020772,2]
[365077811,1749444646549,-11856.04170836,0.00020773,2]
[365077813,1749444646560,-213.08899333,0.00020773,2]
[365077815,1749444646570,-834.7738823,0.00020773,2]
[365077817,1749444646581,-812.26,0.00020821,2]
[365077820,1749444646591,-440.0,0.00020821,2]
[365077821,1749444646600,-694.74,0.00020821,2]
[365077824,1749444646610,-440.0,0.00020821,2]
[365077826,1749444646620,-440.0,0.00020821,2]
[365077828,1749444646629,-440.0,0.00020821,2]
[365077829,1749444646638,-440.0,0.00020821,2]
[365077831,1749444646648,-1161.26,0.00020821,2]
[365077833,1749444646658,-440.0,0.00020821,2]
[365077836,1749444646668,-440.0,0.00020821,2]
[365077837,1749444646678,-1198.67,0.00020821,2]
[365077838,1749444646687,-440.0,0.00020821,2]
[365077839,1749444646696,-440.0,0.00020821,2]
[365077840,1749444646706,-2685.57,0.00020821,2]
[365077841,1749444646715,-523.07,0.00020821,2]
[365077842,1749444646820,-887.57,0.00020821,2]
[365077844,1749444646831,-989.21,0.00020821,2]
[365077847,1749444646841,-440.0,0.00020821,2]
[365077849,1749444646852,-1992.35,0.00020821,2]
[365077851,1749444646862,-440.0,0.00020821,2]
[365077853,1749444646872,-641.07,0.00020821,2]
[365077855,1749444646882,-440.0,0.00020821,2]
[365077857,1749444646891,-440.0,0.00020821,2]
[365077859,1749444646902,-656.06,0.00020821,2]
[365077861,1749444646912,-1622.31,0.00020821,2]
[365077863,1749444646922,-2462.23,0.00020821,2]
[365077865,1749444646932,-2564.26,0.00020821,2]
[365077867,1749444646942,-163.68702537,0.00020821,2]
[365077869,1749444646952,-523.26763229,0.00020821,2]
[365077871,1749444646962,-440.0,0.00020821,2]
[365077873,1749444646972,-440.0,0.00020821,2]
[365077875,1749444646982,-440.0,0.00020821,2]
[365077877,1749444646992,-440.0,0.00020821,2]
[365077879,1749444647002,-1811.2,0.00020821,2]
[365077881,1749444647012,-2141.61,0.00020821,2]
[365077883,1749444647022,-440.0,0.00020821,2]
[365077886,1749444647032,-956.23,0.00020821,2]
[365077888,1749444647042,-3014.3352852,0.00020859,2]
[365077890,1749444647051,-1264.59012865,0.00020969,4]
[365077892,1749444647061,-378.0,0.00021,14]
[365077894,1749444647071,-812.26,0.00021095,2]
[365077895,1749444647080,-440.0,0.00021095,2]
[365077898,1749444647090,-694.74,0.00021095,2]
[365077900,1749444647101,-440.0,0.00021095,2]
[365077902,1749444647112,-440.0,0.00021095,2]
[365077904,1749444647121,-440.0,0.00021095,2]
[365077906,1749444647130,-380.0,0.00021095,2]
[365077908,1749444647139,-1161.26,0.00021095,2]
[365077910,1749444647149,-440.0,0.00021095,2]
[365077912,1749444647159,-440.0,0.00021095,2]
[365077914,1749444647169,-1198.67,0.00021095,2]
[365077916,1749444647178,-380.0,0.00021095,2]
[365077918,1749444647188,-440.0,0.00021095,2]
[365077920,1749444647197,-2685.57,0.00021095,2]
[365077922,1749444647207,-523.07,0.00021095,2]
[365077923,1749444647216,-887.57,0.00021095,2]
[365077924,1749444647226,-989.21,0.00021095,2]
[365077925,1749444647235,-440.0,0.00021095,2]
[365077926,1749444647245,-1992.35,0.00021095,2]
[365077927,1749444647255,-440.0,0.00021095,2]
[365077928,1749444647264,-641.07,0.00021095,2]
[365077929,1749444647274,-348.2703138,0.00021095,2]
[365077930,1749444647284,-440.0,0.00021095,2]
[365077931,1749444647294,-656.06,0.00021095,2]
[365077932,1749444647304,-1622.31,0.00021095,2]
[365077933,1749444647314,-2462.23,0.00021095,2]
[365077934,1749444647324,-2564.26,0.00021095,2]
[365077935,1749444647334,-440.0,0.00021095,2]
[365077936,1749444647344,-440.0,0.00021095,2]
[365077937,1749444647354,-440.0,0.00021095,2]
[365077939,1749444647365,-360.0,0.00021095,2]
[365077941,1749444647375,-1811.2,0.00021095,2]
[365077943,1749444647385,-2141.61,0.00021095,2]
[365077945,1749444647396,-587.24405743,0.00021095,2]
[365077947,1749444647407,-956.23,0.00021095,2]
[365077949,1749444647417,-1264.59012865,0.00021176,4]
[365077952,1749444647428,-254.07190664,0.00021349,2]
[365077954,1749444647437,-500.0,0.00021354,2]
[365077955,1749444647448,-500.0,0.00021354,2]
[365077957,1749444647459,-500.0,0.00021362,2]
[365077960,1749444647470,-812.26,0.00021369,2]
[365077962,1749444647479,-440.0,0.00021369,2]
[365077964,1749444647490,-694.74,0.00021369,2]
[365077966,1749444647500,-440.0,0.00021369,2]
[365077968,1749444647510,-350.0,0.00021369,2]
[365077970,1749444647520,-440.0,0.00021369,2]
[365077972,1749444647532,-1161.26,0.00021369,2]
[365077974,1749444647542,-440.0,0.00021369,2]
[365077976,1749444647552,-287.00728787,0.00021369,2]
[365077978,1749444647562,-1198.67,0.00021369,2]
[365077980,1749444647571,-440.0,0.00021369,2]
[365077982,1749444647581,-2685.57,0.00021369,2]
[365077984,1749444647592,-523.07,0.00021369,2]
[365077986,1749444647601,-887.57,0.00021369,2]
[365077988,1749444647611,-989.21,0.00021369,2]
[365077990,1749444647621,-440.0,0.00021369,2]
[365077992,1749444647630,-1992.35,0.00021369,2]
[365077994,1749444647640,-440.0,0.00021369,2]
[365077996,1749444647650,-641.07,0.00021369,2]
[365077998,1749444647660,-440.0,0.00021369,2]
[365078000,1749444647671,-656.06,0.00021369,2]
[365078002,1749444647681,-1622.31,0.00021369,2]
[365078004,1749444647691,-2462.23,0.00021369,2]
[365078007,1749444647701,-2564.26,0.00021369,2]
[365078008,1749444647711,-440.0,0.00021369,2]
[365078011,1749444647721,-440.0,0.00021369,2]
[365078013,1749444647731,-440.0,0.00021369,2]
[365078015,1749444647741,-1811.2,0.00021369,2]
[365078017,1749444647751,-2141.61,0.00021369,2]
[365078019,1749444647760,-956.23,0.00021369,2]
[365078021,1749444647771,-1264.59012865,0.00021383,5]
[365078023,1749444647781,-151.0,0.000214,3]
[365078025,1749444647791,-158.716035,0.00021404,2]
[365078027,1749444647801,-504.82529594,0.00021482,2]
[365078029,1749444647811,-2380.45724693,0.00021563,2]
[365078031,1749444647821,-1264.59012865,0.0002159,5]
[365078033,1749444647831,-587.0,0.00021606,2]
[365078034,1749444647841,-812.26,0.00021643,2]
[365078035,1749444647851,-440.0,0.00021643,2]
[365078036,1749444647862,-694.74,0.00021643,2]
[365078037,1749444647871,-440.0,0.00021643,2]
[365078038,1749444647881,-440.0,0.00021643,2]
[365078040,1749444647891,-1161.26,0.00021643,2]
[365078042,1749444647901,-274.60447671,0.00021643,2]
[365078043,1749444647911,-1198.67,0.00021643,2]
[365078044,1749444647921,-440.0,0.00021643,2]
[365078045,1749444647931,-2685.57,0.00021643,2]
[365078046,1749444647941,-523.07,0.00021643,2]
[365078047,1749444647950,-887.57,0.00021643,2]
[365078048,1749444647960,-989.21,0.00021643,2]
[365078049,1749444647970,-440.0,0.00021643,2]
[365078050,1749444647979,-1992.35,0.00021643,2]
[365078051,1749444647989,-440.0,0.00021643,2]
[365078052,1749444647998,-641.07,0.00021643,2]
[365078054,1749444648008,-440.0,0.00021643,2]
[365078055,1749444648018,-656.06,0.00021643,2]
[365078056,1749444648028,-1622.31,0.00021643,2]
[365078057,1749444648039,-2462.23,0.00021643,2]
[365078058,1749444648049,-2564.26,0.00021643,2]
[365078059,1749444648059,-440.0,0.00021643,2]
[365078060,1749444648069,-440.0,0.00021643,2]
[365078061,1749444648079,-440.0,0.00021643,2]
[365078062,1749444648088,-1811.2,0.00021643,2]
[365078063,1749444648098,-2141.61,0.00021643,2]
[365078064,1749444648108,-956.23,0.00021643,2]
[365078065,1749444648120,-500.0,0.00021686,2]
[365078066,1749444648129,-500.0,0.00021686,2]
[365078067,1749444648139,-500.0,0.00021691,2]
[365078068,1749444648148,-500.0,0.00021745,2]
[365078069,1749444648158,-501.25736118,0.00021745,2]
[365078070,1749444648167,-500.0,0.00021745,2]
[365078071,1749444648176,-3014.3352852,0.00021749,2]
[365078072,1749444648185,-500.0,0.0002176,2]
[365078073,1749444648195,-501.29367668,0.0002176,2]
[365078074,1749444648204,-500.0,0.0002176,2]
[365078075,1749444648213,-500.0,0.0002176,2]
[365078076,1749444648223,-501.40643246,0.0002176,2]
[365078077,1749444648233,-500.0,0.0002176,2]
[365078078,1749444648243,-500.0,0.0002176,2]
[365078079,1749444648252,-557.78340041,0.0002176,2]
[365078080,1749444648262,-500.0,0.0002176,2]
[365078081,1749444648272,-500.0,0.0002176,2]
[365078083,1749444648282,-500.0,0.0002176,2]
[365078085,1749444648292,-644.27040841,0.0002176,2]
[365078087,1749444648302,-505.79564037,0.0002176,2]
[365078089,1749444648312,-500.0,0.0002176,2]